bitfinex-derivatives/quotes_ETHF0:USTF0_20260316
["timestamp","ask_amount","ask_price","bid_price","bid_amount"]
[1773682589064,8.2934415,2311.7,2310.7,8.19894003]
[1773682589264,8.2934415,2311.5,2310.2,8.19894003]
[1773682589764,8.5097415,2311.4,2309.8,8.19894003]
[1773682591665,8.2934415,2310.9,2309.3,8.19894003]
[1773682591963,8.2934415,2310.7,2309.3,8.19894003]
[1773682595866,8.2934415,2310.5,2309.3,8.19894003]
[1773682596361,8.2934415,2310.5,2309.3,8.41544003]
[1773682596764,8.2934415,2310.9,2309.3,8.41544003]
[1773682598570,8.2934415,2310.5,2309.3,8.19894003]
[1773682598760,8.2934415,2310.1,2309.3,8.19894003]
[1773682598964,20.7664415,2310.6,2309.3,8.19894003]
[1773682599164,8.2934415,2310.5,2309.3,8.19894003]
[1773682601670,8.2934415,2310.9,2309.3,8.19894003]
[1773682602571,8.2934415,2310.9,2309.5,8.19894003]
[1773682604072,8.2934415,2311.1,2309.8,0.21645]
[1773682604276,0.21467524,2311.4,2310.6,8.19894003]
[1773682604571,8.29787216,2311.5,2310.6,8.19894003]
[1773682605571,8.29787216,2311.5,2310.1,0.21642]
[1773682605779,8.51417216,2311.5,2310.2,8.19894003]
[1773682606075,0.21633,2311.1,2310.2,8.19894003]
[1773682606275,8.2934415,2311.0,2309.6,8.19894003]
[1773682606476,8.2934415,2310.8,2309.6,8.19894003]
[1773682611080,8.2934415,2310.6,2309.6,8.19894003]
[1773682613385,7.39249169,2311.2,2309.6,8.19894003]
[1773682613587,7.39249169,2311.2,2309.8,7.9902918]
[1773682615081,7.39249169,2311.2,2309.7,9.24646]
[1773682615082,7.39249169,2311.2,2310.0,7.35166688]
[1773682615284,7.58445159,2311.0,2310.0,7.35166688]
[1773682615490,7.58445159,2311.0,2309.5,7.35166688]
[1773682616591,0.21635,2310.9,2309.5,7.35166688]
[1773682616790,7.58445159,2310.8,2309.5,7.35166688]
[1773682617090,7.58445159,2310.6,2309.5,7.35166688]
[1773682619392,7.58445159,2310.4,2309.3,7.35166688]
[1773682620286,7.58445159,2310.2,2309.2,7.35708899]
[1773682620487,0.21641,2310.3,2308.8,7.35166688]
[1773682620488,7.58445159,2310.0,2308.8,7.35166688]
[1773682620692,7.58445159,2309.8,2308.8,7.35166688]
[1773682621390,7.58445159,2309.8,2308.1,0.2166]
[1773682621595,7.58445159,2309.6,2308.2,7.35166688]
[1773682621790,7.58445159,2309.4,2308.2,7.35166688]
[1773682622290,7.58445159,2309.4,2308.4,7.35166688]
[1773682623093,4.58445159,2309.4,2308.4,7.35166688]
[1773682624596,4.58445159,2309.4,2308.2,7.35166688]
[1773682627200,7.58445159,2309.3,2308.2,7.35166688]
[1773682628404,7.69317159,2309.3,2308.2,7.35166688]
[1773682629105,7.58445159,2309.1,2308.1,0.00501766]
[1773682629300,7.69866159,2309.1,2308.1,0.00501766]
[1773682630401,7.58445159,2309.1,2308.1,7.35668454]
[1773682630602,7.69356159,2309.1,2308.1,7.35668454]
[1773682630807,7.58445159,2309.1,2308.1,7.35668454]
[1773682635706,7.58445159,2309.1,2308.1,0.00501766]
[1773682636303,7.58445159,2308.9,2308.1,0.00501766]
[1773682637800,7.58445159,2308.7,2307.5,7.35166688]
[1773682638002,0.21657,2308.6,2307.5,7.35166688]
[1773682638205,7.58445159,2308.4,2307.0,7.35166688]
[1773682639004,7.58445159,2308.4,2307.0,7.35689439]
[1773682639203,7.58445159,2308.4,2307.2,7.35166688]
[1773682639407,7.58445159,2308.4,2307.4,7.35166688]
[1773682640008,7.58445159,2308.6,2307.6,7.35166688]
[1773682642011,7.58445159,2308.8,2308.0,7.35166688]
[1773682647910,7.58445159,2308.8,2307.8,7.79873191]
[1773682648116,7.80100159,2308.8,2307.4,7.79873191]
[1773682650616,7.05986449,2308.3,2307.1,7.79873191]
[1773682650909,7.05986449,2308.1,2307.0,0.00522751]
[1773682651111,7.17412561,2308.1,2307.0,0.00522751]
[1773682651508,7.06540561,2308.1,2307.0,0.00522751]
[1773682651712,7.17634561,2308.1,2307.0,0.00522751]
[1773682652309,7.05986449,2307.9,2307.0,0.00522751]
[1773682652510,7.17561449,2307.7,2306.5,7.79873191]
[1773682653213,7.17406449,2307.5,2306.5,7.79873191]
[1773682653511,7.17406449,2307.5,2306.5,7.80357101]
[1773682653919,7.17406449,2307.5,2306.5,0.0048391]
[1773682654114,7.17336449,2307.3,2306.1,7.79873191]
[1773682655116,7.17336449,2307.3,2306.1,7.80274062]
[1773682657420,7.16874449,2307.1,2306.1,7.80274062]
[1773682657620,7.16900449,2307.1,2306.1,7.80274062]
[1773682657817,7.05986449,2307.1,2306.1,7.80274062]
[1773682658017,7.05986449,2307.5,2306.5,7.79873191]
[1773682658614,19.62938811,2307.7,2306.7,7.79873191]
[1773682658813,7.05986449,2308.0,2306.9,7.79873191]
[1773682661118,0.07542075,2308.8,2306.9,7.79873191]
[1773682661322,7.05986449,2309.3,2308.2,7.79873191]
[1773682661517,7.05986449,2309.9,2308.2,7.79873191]
[1773682661819,7.05986449,2309.7,2308.4,7.79873191]
[1773682662218,7.06309688,2309.7,2308.4,7.80282099]
[1773682662616,7.33798488,2309.7,2308.4,7.80282099]
[1773682663021,7.06309688,2309.7,2308.4,7.80282099]
[1773682663318,0.00323239,2309.7,2308.6,7.79873191]
[1773682663524,7.05986449,2310.3,2308.8,7.79873191]
[1773682664723,7.06503533,2310.3,2308.8,7.79873191]
[1773682668125,7.06503533,2310.3,2308.9,0.21654]
[1773682668325,7.06503533,2310.3,2309.0,7.79873191]
[1773682668820,0.00517084,2310.3,2309.0,7.79873191]
[1773682669225,7.06503533,2310.3,2309.0,7.79873191]
[1773682669726,0.00517084,2310.3,2309.0,7.79873191]
[1773682673329,6.97695317,2311.0,2309.1,7.41362159]
[1773682673829,6.97695317,2311.0,2309.4,7.19710159]
[1773682674426,6.98140267,2311.0,2309.4,7.19710159]
[1773682676634,7.13802558,2310.8,2309.4,7.19710159]
[1773682678032,0.0044495,2311.0,2309.8,7.24225985]
[1773682679132,7.14247508,2311.0,2309.8,7.24225985]
[1773682681532,0.0044495,2311.0,2310.0,7.24225985]
[1773682681735,7.13802558,2312.0,2310.2,7.24225985]
[1773682681934,7.13802558,2311.8,2310.2,7.24225985]
[1773682682130,7.13802558,2311.4,2310.2,7.24225985]
[1773682682436,7.13802558,2311.2,2310.2,7.24225985]
[1773682682633,7.14173629,2311.2,2310.2,7.24783249]
[1773682684832,7.13802558,2311.0,2310.2,7.24783249]
[1773682685133,0.00371071,2311.2,2309.3,8.892]
[1773682685134,7.13802558,2310.6,2310.0,6.84206937]
[1773682685437,7.13802558,2310.6,2309.4,7.24225985]
[1773682685638,7.13802558,2310.4,2309.4,7.24225985]
[1773682686039,7.13802558,2310.2,2309.4,7.24685612]
[1773682688740,7.24672558,2310.2,2309.4,7.24685612]
[1773682689239,7.24732558,2310.2,2309.4,7.24685612]
[1773682689540,7.13802558,2310.2,2309.4,7.24685612]
[1773682690340,7.24641558,2310.2,2309.4,7.24685612]
[1773682690540,7.46416558,2310.7,2309.4,7.24685612]
[1773682690740,7.46404558,2310.7,2309.4,7.24685612]
[1773682691039,7.35439558,2310.7,2309.4,7.24685612]
[1773682691246,7.13802558,2310.7,2309.4,7.24685612]
[1773682692237,7.13802558,2310.7,2309.6,7.24225985]
[1773682693643,7.13802558,2310.9,2309.8,7.24225985]
[1773682693944,7.13802558,2311.1,2309.8,7.24225985]
[1773682696142,0.00371071,2311.2,2310.2,7.24225985]
[1773682696348,7.13802558,2311.7,2310.2,7.24225985]
[1773682696847,7.13802558,2311.7,2310.4,7.24225985]
[1773682697444,7.14244285,2311.7,2310.4,7.24225985]
[1773682698149,0.00441727,2311.7,2310.4,7.24225985]
[1773682698353,7.14244285,2311.7,2310.6,7.24225985]
[1773682702758,7.25083285,2311.7,2310.6,7.24225985]
[1773682702958,7.25156285,2311.7,2310.6,7.24225985]
[1773682706359,12.24808373,2313.0,2310.9,6.69933169]
[1773682706560,7.10641493,2312.7,2311.6,6.69933169]
[1773682707361,7.11133411,2312.7,2311.6,6.70482021]
[1773682708159,7.10641493,2313.4,2311.8,6.69933169]
[1773682708359,7.10641493,2313.0,2311.8,6.69933169]
[1773682709165,7.11099159,2313.0,2311.8,6.69933169]
[1773682710365,0.00457666,2313.0,2312.0,6.69933169]
[1773682710861,7.11099159,2313.0,2312.0,6.69933169]
[1773682711567,0.00457666,2313.0,2312.0,6.69933169]
[1773682712065,7.11099159,2313.0,2312.0,6.69933169]
[1773682717375,0.00457666,2313.0,2312.0,6.69933169]
[1773682717766,0.00457666,2313.0,2312.2,6.69933169]
[1773682718678,7.11099159,2313.0,2312.2,6.69933169]
[1773682722477,7.22287159,2313.0,2312.2,6.69933169]
[1773682722674,7.11099159,2313.0,2311.7,6.69933169]
[1773682722874,0.21616,2312.9,2311.7,6.69933169]
[1773682723077,7.10641493,2312.8,2311.7,6.69933169]
[1773682723276,7.21533493,2312.8,2311.7,6.69933169]
[1773682723479,7.21699493,2312.8,2311.7,6.69933169]
[1773682723678,7.21456493,2312.8,2311.7,6.69933169]
[1773682723880,7.10641493,2312.8,2311.7,6.69933169]
[1773682724076,7.21533493,2312.8,2311.7,6.69933169]
[1773682724578,7.10641493,2312.8,2311.7,6.69933169]
[1773682724879,7.21551493,2312.8,2311.7,6.69933169]
[1773682725479,7.21625493,2312.8,2311.7,6.69933169]
[1773682725681,7.10641493,2312.8,2311.7,6.69933169]
[1773682725977,7.21578493,2312.8,2311.7,6.69933169]
[1773682726173,7.43646159,2313.0,2311.7,6.69933169]
[1773682727280,7.43752159,2313.0,2311.7,6.69933169]
[1773682728883,7.22606493,2312.7,2311.7,6.69933169]
[1773682729982,7.10641493,2312.5,2311.7,6.69933169]
[1773682730182,7.22422493,2312.5,2311.7,6.69933169]
[1773682730782,7.22422493,2312.5,2311.6,0.00548852]
[1773682730982,7.22422493,2312.5,2311.6,6.70482021]
[1773682731684,7.21913493,2312.5,2311.6,6.70482021]
[1773682732079,7.10641493,2312.5,2311.6,6.70482021]
[1773682732280,7.21609493,2312.5,2311.6,6.70482021]
[1773682732883,7.21942493,2312.5,2311.6,6.70482021]
[1773682734187,7.10641493,2312.5,2311.6,6.70482021]
[1773682734387,6.6664388,2312.7,2311.6,6.70482021]
[1773682734778,6.59678596,2312.9,2311.8,6.81652774]
[1773682738687,6.59678596,2312.7,2311.8,6.81652774]
[1773682738886,6.59678596,2312.7,2311.6,6.82201626]
[1773682740591,6.70505596,2312.7,2311.6,6.82201626]
[1773682741095,6.70564596,2312.7,2311.6,6.82201626]
[1773682741295,6.70630596,2312.6,2311.6,6.82201626]
[1773682741594,6.59678596,2312.6,2311.6,6.82201626]
[1773682742294,6.70619596,2312.6,2311.6,6.82201626]
[1773682742894,6.59678596,2312.6,2311.6,6.82201626]
[1773682743088,0.00457666,2313.0,2311.6,6.82201626]
[1773682743089,6.59678596,2312.9,2311.6,6.82201626]
[1773682743294,6.59678596,2312.9,2311.8,6.81652774]
[1773682744498,6.60136262,2313.0,2311.8,6.81652774]
[1773682747998,6.59678596,2312.9,2311.8,6.81652774]
[1773682751000,6.81295596,2312.9,2311.8,6.81652774]
[1773682753505,6.92274596,2312.9,2311.8,6.81652774]
[1773682754705,6.81295596,2312.9,2311.8,6.81652774]
[1773682756206,6.59678596,2312.8,2311.8,6.81652774]
[1773682757907,6.60136262,2313.0,2311.8,6.81652774]
[1773682761208,6.81751262,2313.0,2311.8,6.81652774]
[1773682763208,6.26339087,2312.5,2311.6,6.46527776]
[1773682764012,6.37158087,2312.5,2311.6,6.46527776]
[1773682764410,6.37247087,2312.5,2311.6,6.46527776]
[1773682769519,6.37247087,2312.5,2311.6,0.00548852]
[1773682771219,6.37247087,2312.5,2311.6,6.46527776]
[1773682772715,6.38025087,2312.3,2311.6,6.46527776]
[1773682772914,0.11686,2312.3,2311.6,6.46527776]
[1773682773120,6.38025087,2312.3,2311.6,6.46527776]
[1773682775819,6.26796753,2313.0,2311.6,6.46527776]
[1773682776322,6.26796753,2313.0,2311.8,6.45978924]
[1773682776520,6.26796753,2313.0,2312.0,6.45978924]
[1773682779526,6.37762753,2313.0,2312.0,6.45978924]
[1773682780327,6.37732087,2312.8,2311.7,6.45978924]
[1773682780625,6.26339087,2312.8,2311.7,6.45978924]
[1773682780825,6.37350087,2312.8,2311.7,6.45978924]
[1773682781322,6.26339087,2312.8,2311.7,6.45978924]
[1773682781626,6.37681087,2312.8,2311.7,6.45978924]
[1773682781826,6.26339087,2312.8,2311.7,6.45978924]
[1773682784427,6.48414061,2312.8,2311.7,6.45978924]
[1773682784628,6.26339087,2312.6,2311.7,6.45978924]
[1773682785331,6.37558087,2312.6,2311.7,6.45978924]
[1773682786128,0.21624,2312.1,2311.3,6.45978924]
[1773682786430,18.21939087,2312.0,2310.5,6.45978924]
[1773682786630,6.26339087,2311.9,2310.7,6.45978924]
[1773682786825,6.26339087,2312.2,2310.9,6.45978924]
[1773682787231,6.37730087,2312.2,2310.9,6.46312977]
[1773682788225,6.26339087,2312.2,2310.9,6.46312977]
[1773682788630,6.26339087,2312.5,2311.3,6.45978924]
[1773682788834,18.21539087,2312.7,2311.3,6.45978924]
[1773682790328,6.26339087,2312.7,2311.3,6.45978924]
[1773682790536,0.00457666,2313.0,2311.5,6.45978924]
[1773682790537,18.21239087,2312.9,2311.5,6.45978924]
[1773682791132,6.26339087,2312.9,2311.5,6.45978924]
[1773682791330,6.26339087,2312.9,2311.7,6.45978924]
[1773682794238,0.00457666,2313.0,2311.9,6.0396739]
[1773682794639,0.00457666,2313.0,2312.1,6.34502108]
[1773682794835,6.47002277,2313.0,2312.1,6.34502108]
[1773682795035,0.00457666,2313.0,2312.3,6.34502108]
[1773682795235,6.74135416,2313.4,2312.3,6.34502108]
[1773682796241,6.74600737,2313.4,2312.3,6.34502108]
[1773682796437,6.46544611,2313.2,2312.3,6.34502108]
[1773682801439,6.46544611,2313.0,2312.3,6.34502108]
[1773682801843,6.46544611,2312.6,2311.7,6.34502108]
[1773682802040,6.46544611,2312.0,2311.0,6.34502108]
[1773682802945,6.46544611,2312.5,2311.0,6.34502108]
[1773682803241,0.21621,2312.4,2311.0,6.34502108]
[1773682803440,6.46544611,2312.3,2311.0,5.97462108]
[1773682804247,6.57472611,2312.3,2311.0,5.97462108]
[1773682805649,6.57945611,2312.3,2311.0,5.97462108]
[1773682807044,6.57559611,2312.3,2311.0,5.97462108]
[1773682807351,6.46544611,2312.3,2311.0,5.97462108]
[1773682807543,6.46544611,2312.5,2311.0,6.19095108]
[1773682813554,6.46544611,2312.5,2311.5,6.34502108]
[1773682814658,6.46544611,2312.3,2311.5,6.34502108]
[1773682815355,6.46544611,2312.3,2310.9,0.00334053]
[1773682815551,6.46544611,2311.9,2309.7,6.34502108]
[1773682815753,6.46544611,2311.7,2309.7,6.56148108]
[1773682815957,6.46544611,2311.5,2309.7,6.77912839]
[1773682816460,6.46544611,2311.5,2310.0,6.34502108]
[1773682816660,6.46959127,2311.5,2310.2,6.34502108]
[1773682820265,6.46959127,2311.5,2310.4,6.34502108]
[1773682820563,0.00414516,2311.5,2310.6,6.34502108]
[1773682820958,6.46959127,2311.5,2310.6,6.34502108]
[1773682823264,0.00414516,2311.5,2310.8,5.79853485]
[1773682824963,6.2030906,2311.5,2310.8,5.79853485]
[1773682830264,6.2030906,2311.5,2310.2,5.79853485]
[1773682830461,0.00414516,2311.5,2310.4,5.79853485]
[1773682831466,0.00414516,2311.5,2310.6,5.79853485]
[1773682831967,6.2030906,2311.5,2310.6,5.79853485]
[1773682833961,0.00414516,2311.5,2310.6,5.79853485]
[1773682834768,6.2030906,2311.5,2310.6,5.79853485]
[1773682839466,0.00414516,2311.5,2310.6,5.79853485]
[1773682839861,6.2030906,2311.5,2310.6,5.79853485]
[1773682840466,6.19894544,2312.5,2310.9,6.01488485]
[1773682840671,6.19894544,2312.5,2311.4,5.79853485]
[1773682841574,6.20428381,2312.5,2311.4,5.79853485]
[1773682842672,6.19894544,2312.9,2311.8,5.79853485]
[1773682843773,6.20235373,2312.9,2311.8,5.80166625]
[1773682844277,0.00340829,2312.9,2311.8,5.80166625]
[1773682844472,6.20235373,2312.9,2311.8,5.80166625]
[1773682847678,6.19894544,2312.7,2311.8,0.0031314]
[1773682849680,6.19894544,2312.7,2311.5,5.79853485]
[1773682849880,6.19894544,2312.5,2311.5,5.79853485]
[1773682850081,0.21623,2312.2,2311.3,5.79853485]
[1773682850282,6.19894544,2312.1,2310.6,5.79853485]
[1773682850484,6.19894544,2312.3,2310.8,5.79853485]
[1773682850683,6.19894544,2312.3,2310.8,5.80354121]
[1773682851483,6.19894544,2312.3,2311.0,5.79853485]
[1773682853285,6.18095562,2312.6,2311.2,6.02619896]
[1773682854485,6.18095562,2312.6,2311.4,6.25891927]
[1773682855489,6.18095562,2312.6,2311.4,6.47521927]
[1773682855988,5.9460799,2312.4,2311.4,6.25891927]
[1773682859894,5.9460799,2312.4,2311.4,6.47521927]
[1773682860091,5.9460799,2312.8,2311.4,6.47521927]
[1773682860392,5.9460799,2312.8,2311.9,6.25891927]
[1773682864393,5.9460799,2312.8,2312.0,0.21625]
[1773682864597,5.9460799,2312.8,2312.1,6.25891927]
[1773682870507,5.9460799,2312.8,2311.6,6.25891927]
[1773682871007,5.9460799,2312.8,2311.8,6.25891927]
[1773682872210,0.00340829,2312.9,2311.4,0.21564858]
[1773682872211,0.00340829,2312.9,2312.0,6.25891927]
[1773682873406,0.00340829,2312.9,2312.2,6.25891927]
[1773682873611,5.94948819,2312.9,2312.2,6.25891927]
[1773682875212,0.00340829,2312.9,2312.2,6.25891927]
[1773682875411,5.9460799,2313.3,2312.2,6.25891927]
[1773682876306,5.94951915,2313.3,2312.2,6.25891927]
[1773682876611,5.94951915,2313.3,2312.4,6.25891927]
[1773682877407,5.94951915,2313.3,2312.6,6.25891927]
[1773682877607,5.9460799,2314.7,2313.0,6.25891927]
[1773682877804,5.9460799,2314.5,2313.6,6.25891927]
[1773682878005,5.9460799,2314.9,2313.6,6.25891927]
[1773682878312,5.9460799,2314.9,2313.8,6.25891927]
[1773682878512,5.94960982,2314.9,2313.8,6.25891927]
[1773682879414,0.00352992,2314.9,2313.8,6.25891927]
[1773682879707,5.94960982,2314.9,2313.8,6.25891927]
[1773682890221,6.12918377,2314.9,2314.0,5.83762351]
[1773682890718,6.12565385,2314.7,2313.5,5.83762351]
[1773682892021,6.12565385,2314.5,2313.5,5.83762351]
[1773682892215,6.12565385,2314.5,2313.7,5.83762351]
[1773682892817,6.12565385,2314.8,2313.7,5.83762351]
[1773682893018,6.12918377,2314.9,2313.7,5.83762351]
[1773682893618,0.00352992,2314.9,2313.7,5.83762351]
[1773682893824,6.12565385,2314.8,2314.1,5.83762351]
[1773682894323,0.21586,2316.2,2314.3,5.83762351]
[1773682894521,6.12565385,2316.1,2314.7,5.83762351]
[1773682894720,6.12565385,2316.1,2314.9,5.83762351]
[1773682895421,6.12991918,2316.1,2314.9,5.84177948]
[1773682899722,6.12565385,2316.6,2315.1,5.83762351]
[1773682899927,6.12565385,2316.6,2315.3,5.83762351]
[1773682900227,6.12565385,2316.4,2315.3,5.83762351]
[1773682900728,6.13037918,2316.4,2315.3,5.83762351]
[1773682901931,6.23894918,2316.4,2315.3,5.83762351]
[1773682902230,6.13037918,2316.4,2315.0,5.83762351]
[1773682903523,6.13037918,2316.4,2315.0,6.05358351]
[1773682903831,0.21578,2317.0,2315.0,6.05358351]
[1773682903832,6.12565385,2316.8,2315.6,5.83762351]
[1773682904933,6.13049671,2316.8,2315.6,5.83762351]
[1773682905132,6.13049671,2316.8,2315.0,5.83762351]
[1773682905133,0.21581,2316.7,2315.0,5.83762351]
[1773682905327,6.13049671,2316.8,2315.4,5.83762351]
[1773682907434,6.12565385,2316.6,2315.4,5.83762351]
[1773682909733,0.00484286,2316.8,2315.4,5.83762351]
[1773682909734,6.12565385,2316.4,2315.4,5.83762351]
[1773682911136,6.12565385,2316.7,2315.4,5.83762351]
[1773682913737,6.23568385,2316.7,2315.4,5.83762351]
[1773682914638,6.12565385,2316.7,2315.4,5.83762351]
[1773682914837,6.23685385,2316.7,2315.4,5.83762351]
[1773682916441,5.85371141,2316.5,2315.4,5.83762351]
[1773682916641,5.97749141,2316.5,2315.4,5.83762351]
[1773682917140,5.97854141,2316.3,2315.0,5.64890567]
[1773682918637,5.97334141,2316.1,2315.0,5.64890567]
[1773682919346,10.46101377,2316.7,2314.5,5.64890567]
[1773682919347,5.97574141,2315.7,2314.5,5.64890567]
[1773682919546,5.96484141,2315.5,2314.5,5.64890567]
[1773682919846,5.96257141,2315.5,2314.5,5.64890567]
[1773682920543,1.82814377,2316.7,2314.5,5.65234302]
[1773682920741,0.21585,2316.3,2314.7,5.64890567]
[1773682920947,5.85371141,2315.8,2314.7,5.64890567]
[1773682921347,5.96324141,2315.8,2314.7,5.64890567]
[1773682921848,5.85371141,2315.8,2314.7,5.64890567]
[1773682922048,5.96353141,2315.8,2314.7,5.64890567]
[1773682922348,5.96511141,2315.8,2314.7,5.64890567]
[1773682922751,5.85371141,2315.8,2314.7,5.64890567]
[1773682923248,5.85371141,2316.3,2314.9,5.64890567]
[1773682923447,5.85371141,2316.3,2315.1,5.64890567]
[1773682924151,5.96171141,2316.3,2315.1,5.64890567]
[1773682924550,5.85371141,2316.3,2315.1,5.64890567]
[1773682925347,11.45,2316.7,2315.3,5.64890567]
[1773682925348,5.85371141,2316.7,2315.3,5.64890567]
[1773682925954,0.21584,2316.4,2315.3,5.64890567]
[1773682926154,5.85371141,2316.3,2315.3,5.64890567]
[1773682926546,0.21585,2316.2,2314.8,5.64890567]
[1773682926752,5.96379141,2315.9,2314.8,5.64890567]
[1773682929556,5.97168141,2315.7,2314.6,5.64890567]
[1773682930057,5.85371141,2315.7,2314.6,5.64890567]
[1773682930353,5.96349141,2315.7,2314.6,5.64890567]
[1773682931558,5.85371141,2315.5,2314.6,5.64890567]
[1773682931859,5.97673141,2315.5,2314.6,5.64890567]
[1773682932053,5.96173141,2315.5,2314.6,5.64890567]
[1773682932258,5.96716141,2315.5,2314.6,5.64890567]
[1773682933553,5.85371141,2315.5,2314.6,5.64890567]
[1773682933755,5.96486141,2315.5,2314.6,5.64890567]
[1773682935362,5.85371141,2315.5,2314.6,5.64890567]
[1773682935758,5.96467141,2315.5,2314.6,5.64890567]
[1773682935959,5.85371141,2315.5,2314.6,5.64890567]
[1773682936160,5.96229141,2315.5,2314.6,5.64890567]
[1773682937161,5.85371141,2315.5,2314.6,5.64890567]
[1773682937362,5.96289141,2315.5,2314.6,5.64890567]
[1773682937952,5.96487141,2315.3,2314.5,0.00343735]
[1773682938157,5.96205141,2315.3,2314.5,0.00343735]
[1773682938360,5.96205141,2315.3,2314.5,5.65234302]
[1773682938562,5.85371141,2315.3,2314.5,5.65234302]
[1773682938860,5.96324141,2315.3,2314.5,5.65234302]
[1773682940263,5.96341141,2315.3,2314.5,5.65234302]
[1773682941066,5.85371141,2315.3,2314.5,5.65234302]
[1773682941457,5.96349141,2315.8,2314.5,5.65234302]
[1773682941661,5.96573141,2315.8,2314.5,5.65234302]
[1773682941859,5.85371141,2315.8,2314.5,5.65234302]
[1773682942663,5.96258141,2315.8,2314.5,5.65234302]
[1773682943866,0.33721,2315.7,2314.5,5.65234302]
[1773682944169,5.83565127,2315.6,2314.5,5.65234302]
[1773682944969,5.83087127,2315.6,2314.5,5.65234302]
[1773682946865,6.04329127,2316.7,2315.0,5.91121251]
[1773682947069,5.71434127,2316.4,2315.0,5.91121251]
[1773682947469,5.82239127,2316.4,2315.0,5.91121251]
[1773682947664,5.71434127,2316.4,2315.0,5.91121251]
[1773682948269,5.82498127,2316.2,2315.0,5.91121251]
[1773682948470,5.82686127,2316.0,2315.0,5.91121251]
[1773682948669,5.82800127,2315.8,2314.6,5.91121251]
[1773682948966,0.2159,2315.7,2314.6,5.91121251]
[1773682949170,5.82880127,2315.6,2314.6,5.91121251]
[1773682950873,5.82782127,2315.4,2314.5,0.00343735]
[1773682951168,5.82782127,2315.4,2314.5,5.91464986]
[1773682955669,5.82451127,2315.4,2314.5,5.91464986]
[1773682955971,5.71434127,2315.4,2314.5,5.91464986]
[1773682956172,5.82698127,2315.4,2314.5,5.91464986]
[1773682957173,5.71434127,2315.4,2314.5,5.91464986]
[1773682957468,5.82252127,2315.4,2314.5,5.91464986]
[1773682958870,5.82341127,2315.4,2314.5,5.91464986]
[1773682959075,5.82302127,2315.4,2314.5,5.91464986]
[1773682961373,5.82302127,2315.4,2314.5,0.00343735]
[1773682961576,5.82797127,2315.2,2314.5,0.00343735]
[1773682962577,5.82797127,2315.2,2314.5,5.91464986]
[1773682965378,5.82510127,2314.5,2313.5,5.91121251]
[1773682965783,5.71434127,2314.7,2313.5,5.91121251]
[1773682965981,5.82531127,2315.0,2313.7,5.91121251]
[1773682966177,5.82531127,2315.0,2313.8,0.21608]
[1773682966382,5.71811785,2315.0,2313.9,5.91121251]
[1773682966581,5.82677785,2315.0,2313.9,5.91121251]
[1773682966779,5.71811785,2315.0,2313.9,5.91121251]
[1773682967078,5.71434127,2314.9,2313.9,5.91121251]
[1773682974085,5.82375127,2314.9,2313.8,0.00443441]
[1773682974482,5.71434127,2314.9,2313.8,5.70210081]
[1773682974677,6.03847127,2314.9,2313.8,5.70210081]
[1773682974883,6.03847127,2314.9,2313.8,0.00443441]
[1773682976186,6.03847127,2314.9,2313.8,5.3427107]
[1773682976388,5.61444519,2314.7,2313.8,5.3427107]
[1773682978088,5.61444519,2314.7,2313.8,0.00443441]
[1773682978393,5.61444519,2314.7,2313.5,5.33827629]
[1773682979289,5.61444519,2314.7,2313.5,5.34173193]
[1773682979989,5.50027519,2314.5,2313.5,5.34173193]
[1773682980195,5.50027519,2314.3,2313.3,5.33827629]
[1773682980491,5.50027519,2314.2,2312.9,5.33827629]
[1773682980692,5.62358519,2314.0,2312.9,5.33827629]
[1773682980993,5.83965519,2314.0,2312.9,5.33827629]
[1773682981189,5.83965519,2314.0,2312.0,5.33827629]
[1773682981395,5.61960519,2313.5,2312.0,5.33827629]
[1773682981693,5.60963519,2313.5,2312.0,5.33827629]
[1773682981894,5.50027519,2313.3,2312.0,5.33827629]
[1773682982393,5.50587066,2313.3,2312.0,5.34193119]
[1773682982593,5.77782581,2313.3,2312.0,5.34193119]
[1773682982791,5.50587066,2313.3,2312.1,0.21624]
[1773682982995,0.00559547,2313.3,2312.3,0.21622]
[1773682983597,5.50587066,2313.3,2312.4,5.33827629]
[1773682986400,0.00559547,2313.3,2312.6,5.33827629]
[1773682988598,5.78252214,2313.6,2312.6,5.33827629]
[1773682989001,5.50027519,2313.6,2312.6,5.33827629]
[1773682989502,5.77228535,2313.6,2312.6,5.33827629]
[1773682989702,5.77721368,2313.6,2312.6,5.33827629]
[1773682989897,5.50520352,2313.6,2312.6,5.33827629]
[1773682990198,5.50520352,2313.6,2312.0,5.55818119]
[1773682990401,5.50027519,2313.5,2312.0,5.55818119]
[1773682991099,5.50027519,2313.5,2312.5,5.33827629]
[1773682994805,5.50027519,2313.5,2312.1,5.33827629]
[1773683000408,5.50027519,2313.3,2312.1,5.33827629]
[1773683000608,11.55732172,2313.6,2312.1,5.33827629]
[1773683000609,5.50027519,2313.1,2312.1,5.33827629]
[1773683003810,5.71961942,2313.5,2312.3,5.59657013]
[1773683004019,5.71961942,2314.3,2313.1,5.59657013]
[1773683004512,5.71961942,2314.3,2313.3,5.59657013]
[1773683005013,5.72377327,2314.3,2313.3,5.59657013]
[1773683016523,0.00415385,2314.3,2313.5,5.59657013]
[1773683017124,5.72377327,2314.3,2313.5,5.59657013]
[1773683021327,5.83194327,2314.3,2313.5,5.59657013]
[1773683021828,5.83190327,2314.3,2313.5,5.59657013]
[1773683023627,5.83240327,2314.3,2313.5,5.59657013]
[1773683023827,5.83419327,2314.3,2313.5,5.59657013]
[1773683027129,5.71961942,2314.1,2313.0,5.59657013]
[1773683027734,5.82822942,2314.1,2313.0,5.59657013]
[1773683027935,5.71961942,2314.1,2313.0,5.59657013]
[1773683029037,5.71961942,2314.1,2313.2,5.59657013]
[1773683029436,0.00415385,2314.3,2313.0,1.16238754]
[1773683029437,5.72377327,2314.3,2313.4,5.59657013]
[1773683029734,5.71961942,2315.4,2313.6,6.75895767]
[1773683030035,5.71961942,2315.2,2313.6,5.59657013]
[1773683030735,6.00476928,2315.2,2313.6,5.59657013]
[1773683031331,5.71961942,2315.0,2313.6,5.59657013]
[1773683031533,5.71961942,2314.6,2313.6,5.59657013]
[1773683035038,5.71961942,2314.6,2313.0,5.74169011]
[1773683035341,6.06428486,2314.4,2313.0,5.74169011]
[1773683035541,6.06428486,2314.2,2313.0,5.74169011]
[1773683036936,6.06428486,2314.6,2313.2,5.74169011]
[1773683039444,6.2798729,2314.6,2313.2,5.74169011]
[1773683041141,6.06428486,2314.4,2313.2,5.74169011]
[1773683041646,6.06428486,2314.2,2313.2,5.74169011]
[1773683045452,6.17261486,2314.2,2313.2,5.74169011]
[1773683047450,6.06428486,2314.0,2312.6,5.74169011]
[1773683047751,6.17683486,2314.0,2312.6,5.74169011]
[1773683050252,6.06428486,2313.8,2312.6,5.74169011]
[1773683050457,6.17422486,2313.8,2312.6,5.74169011]
[1773683050758,6.06428486,2313.6,2312.6,5.74169011]
[1773683051059,6.17525486,2313.6,2312.6,5.74169011]
[1773683051450,6.17430486,2313.4,2312.1,5.74169011]
[1773683051652,6.17922572,2313.4,2312.1,5.74169011]
[1773683052057,6.06920572,2313.4,2312.1,5.74169011]
[1773683052260,6.17797572,2313.4,2312.1,5.74169011]
[1773683052758,6.06428486,2312.7,2312.1,5.74169011]
[1773683053852,6.06428486,2312.5,2312.1,5.74169011]